bitfinex/quotes_SOLUSD_20251218
["timestamp","ask_amount","ask_price","bid_price","bid_amount"]
[1766083386504,3.23607969,123.19,123.15,0.67]
[1766083387210,2.63607969,123.18,123.15,0.67]
[1766083387413,3.23607969,123.18,123.14,8.9]
[1766083387717,3.23607969,123.18,123.14,17.69083761]
[1766083388115,3.23607969,123.18,123.14,9.57]
[1766083388810,2.63607969,123.18,123.15,0.67]
[1766083390823,2.63607969,123.19,123.16,0.67]
[1766083391322,3.23607969,123.19,123.16,0.67]
[1766083391620,2.63607969,123.17,123.14,17.6905454]
[1766083392025,3.23607969,123.18,123.14,9.57]
[1766083392218,3.23607969,123.18,123.14,8.9]
[1766083392422,2.63607969,123.18,123.15,0.67]
[1766083392726,2.63607969,123.17,123.14,8.9]
[1766083393228,3.23607969,123.18,123.14,9.62]
[1766083393616,2.63607969,123.17,123.14,0.72]
[1766083394330,2.63607969,123.17,123.11,8.9]
[1766083394503,3.23607969,123.15,123.11,8.9]
[1766083394826,10.75432895,123.18,123.1,0.72]
[1766083394827,3.23607969,123.14,123.1,0.72]
[1766083395032,2.63607969,123.13,123.1,0.72]
[1766083395234,3.23607969,123.14,123.1,0.72]
[1766083395436,3.23607969,123.14,123.11,0.72]
[1766083395926,2.63607969,123.14,123.11,0.72]
[1766083396312,2.63607969,123.14,123.09,0.72]
[1766083396313,2.63607969,123.12,123.09,0.72]
[1766083396527,13.07375265,123.14,123.08,0.72]
[1766083396708,11.44602461,123.18,123.1,8.12332462]
[1766083396909,10.43767296,123.18,123.12,0.72]
[1766083397134,2.63607969,123.17,123.12,0.72]
[1766083397318,2.63607969,123.17,123.14,0.72]
[1766083397519,12.13607969,123.19,123.14,0.72]
[1766083397737,11.53607969,123.19,123.14,0.72]
[1766083398038,3.23607969,123.2,123.14,0.72]
[1766083398248,0.6,123.2,123.14,0.72]
[1766083398542,3.23607969,123.2,123.14,0.72]
[1766083398762,2.63607969,123.18,123.14,0.72]
[1766083399831,2.63607969,123.18,123.15,0.72]
[1766083400258,3.23607969,123.19,123.15,0.72]
[1766083400631,2.63607969,123.18,123.15,0.72]
[1766083402041,3.23607969,123.16,123.12,0.72]
[1766083402559,2.63607969,123.19,123.13,0.72]
[1766083403364,30.72936738,123.21,123.07,0.2]
[1766083403365,0.6,123.11,123.07,0.2]
[1766083403551,0.6,123.11,123.04,0.2]
[1766083403552,2.63607969,123.08,123.04,0.2]
[1766083403799,2.63607969,123.06,123.04,0.2]
[1766083403934,31.06363004,123.12,123.05,0.72]
[1766083403935,2.63607969,123.08,123.05,0.72]
[1766083404134,2.63607969,123.13,123.07,0.72]
[1766083404335,2.63607969,123.09,123.04,8.32733741]
[1766083404534,2.63607969,123.08,123.05,0.72]
[1766083404952,2.63607969,123.09,123.05,0.72]
[1766083405667,2.63607969,123.08,123.05,0.72]
[1766083406855,2.63607969,123.06,123.04,0.2]
[1766083407169,2.63607969,123.08,123.04,0.92]
[1766083407369,2.63607969,123.1,123.05,0.72]
[1766083407577,2.63607969,123.1,123.04,9.00994492]
[1766083407578,2.63607969,123.09,123.06,0.72]
[1766083407886,17.0222341,123.12,123.05,8.12619653]
[1766083408042,17.0222341,123.12,123.06,0.72]
[1766083408043,2.63607969,123.1,123.06,0.72]
[1766083408668,2.63607969,123.1,123.06,11.15767296]
[1766083409346,2.63607969,123.09,123.06,0.72]
[1766083409938,2.63607969,123.07,123.04,0.2]
[1766083410265,2.63607969,123.06,123.03,0.2]
[1766083410460,2.63607969,123.07,123.03,0.92]
[1766083410667,8.9,123.08,123.03,0.92]
[1766083410844,11.53607969,123.08,123.04,0.72]
[1766083411168,2.63607969,123.07,123.03,0.92]
[1766083411867,2.63607969,123.07,123.04,0.72]
[1766083412865,19.66100714,123.08,123.04,0.72]
[1766083413163,2.63607969,123.07,123.04,0.72]
[1766083413347,4.1291259,123.07,123.04,0.72]
[1766083415161,4.1291259,123.08,123.04,0.72]
[1766083416663,4.1291259,123.07,123.03,0.2]
[1766083416986,4.1291259,123.06,123.03,0.2]
[1766083417479,13.0291259,123.07,123.03,0.92]
[1766083417775,8.9,123.07,123.04,0.72]
[1766083418277,103.8,123.08,123.05,0.72]
[1766083418846,4.1291259,123.09,123.05,0.72]
[1766083421049,24.43558809,123.12,123.08,10.43767296]
[1766083421050,4.1291259,123.12,123.08,10.43767296]
[1766083421259,17.02161382,123.13,123.08,11.15767296]
[1766083421765,21.15073972,123.13,123.08,11.15767296]
[1766083423571,4.1291259,123.13,123.08,19.28223166]
[1766083423877,13.0291259,123.13,123.08,19.28223166]
[1766083424070,8.9,123.13,123.09,0.7]
[1766083425474,8.9,123.13,123.09,8.8241154]
[1766083425857,103.8,123.14,123.09,12.2532413]
[1766083426065,10.43767296,123.15,123.11,0.7]
[1766083426253,14.56679886,123.15,123.11,0.7]
[1766083426758,22.68712347,123.15,123.11,0.7]
[1766083426963,4.1291259,123.14,123.1,0.7]
[1766083428974,4.1291259,123.13,123.09,0.7]
[1766083429360,8.9,123.14,123.11,0.7]
[1766083429575,8.9,123.14,123.09,0.7]
[1766083429576,13.0291259,123.14,123.09,0.7]
[1766083429877,8.9,123.14,123.1,0.7]
[1766083430248,8.9,123.14,123.1,8.82345349]
[1766083430465,8.9,123.14,123.11,0.7]
[1766083432148,14.56679886,123.15,123.11,8.82279096]
[1766083432348,8.9,123.14,123.11,8.82279096]
[1766083433176,10.43767296,123.15,123.12,0.7]
[1766083435680,19.33767296,123.15,123.12,0.7]
[1766083436383,8.9,123.15,123.12,8.82211735]
[1766083436591,4.1291259,123.17,123.12,8.12211735]
[1766083436894,13.0291259,123.17,123.13,0.7]
[1766083437676,29.1032246,123.2,123.14,4.1291259]
[1766083437677,4.1291259,123.2,123.14,4.1291259]
[1766083437907,13.0291259,123.2,123.15,0.7]
[1766083438089,8.9,123.2,123.15,0.7]
[1766083438802,13.0291259,123.2,123.15,0.7]
[1766083441110,21.14602354,123.2,123.15,0.7]
[1766083441318,4.1291259,123.19,123.15,0.7]
[1766083441519,4.1291259,123.18,123.13,0.7]
[1766083441813,12.24771939,123.18,123.13,0.7]
[1766083441999,4.1291259,123.18,123.14,0.7]
[1766083442398,12.24733797,123.18,123.14,0.7]
[1766083444617,12.24733797,123.18,123.12,12.25088086]
[1766083444822,12.24733797,123.18,123.12,8.82175496]
[1766083445034,4.1291259,123.17,123.12,0.7]
[1766083445198,13.0291259,123.17,123.12,0.7]
[1766083446223,13.0291259,123.17,123.13,0.7]
[1766083449226,8.9,123.17,123.14,0.7]
[1766083449615,8.9,123.17,123.14,4.1291259]
[1766083449927,114.23767296,123.19,123.15,0.7]
[1766083449928,8.9,123.18,123.15,0.7]
[1766083450424,8.80994492,123.21,123.15,0.7]
[1766083450721,13.0291259,123.2,123.15,8.82009351]
[1766083450932,13.0291259,123.2,123.16,0.7]
[1766083451307,4.1291259,123.19,123.16,0.7]
[1766083451532,21.14602003,123.2,123.16,0.7]
[1766083452512,4.1291259,123.19,123.15,0.7]
[1766083454329,12.24668903,123.19,123.13,0.72]
[1766083454538,12.24668903,123.19,123.14,0.72]
[1766083455611,4.1291259,123.18,123.14,0.72]
[1766083455810,12.24751822,123.18,123.14,0.72]
[1766083456738,13.0291259,123.17,123.12,0.72]
[1766083456943,13.0291259,123.17,123.13,0.72]
[1766083457448,13.0291259,123.17,123.12,0.72]
[1766083457825,21.14833197,123.17,123.12,0.72]
[1766083459734,4.1291259,123.16,123.12,0.72]
[1766083460241,17.01915716,123.17,123.12,0.72]
[1766083460436,21.14828306,123.17,123.12,0.72]
[1766083460823,13.0291259,123.17,123.12,8.84187189]
[1766083461020,4.1291259,123.17,123.13,0.72]
[1766083461225,21.14799069,123.17,123.13,0.72]
[1766083461932,13.0291259,123.17,123.13,0.72]
[1766083463233,21.14806907,123.17,123.13,0.72]
[1766083463439,4.1291259,123.14,123.1,0.72]
[1766083463621,4.1291259,123.15,123.1,0.72]
[1766083464309,4.1291259,123.12,123.08,0.72]
[1766083465537,4.1291259,123.12,123.08,11.15767296]
[1766083466248,4.1291259,123.12,123.09,0.72]
[1766083466542,8.12191328,123.13,123.09,0.72]
[1766083466745,4.1291259,123.12,123.09,0.72]
[1766083467353,4.1291259,123.11,123.06,0.72]
[1766083467547,4.1291259,123.1,123.06,0.72]
[1766083468546,4.1291259,123.09,123.06,0.72]
[1766083468837,4.1291259,123.07,123.03,0.92]
[1766083469041,8.9,123.08,123.03,0.92]
[1766083469042,4.1291259,123.06,123.03,0.92]
[1766083469541,4.1291259,123.05,123.03,0.2]
[1766083469918,8.80994492,123.07,123.03,0.2]
[1766083470114,4.1291259,123.06,123.03,0.2]
[1766083470337,12.25545274,123.06,123.03,0.2]
[1766083471039,4.1291259,123.05,123.03,0.2]
[1766083471336,4.1291259,123.04,123.02,0.1]
[1766083471943,13.0291259,123.05,123.02,0.82]
[1766083472143,8.9,123.05,123.02,0.1]
[1766083472321,21.15623301,123.05,123.02,0.1]
[1766083473446,13.0291259,123.05,123.02,0.1]
[1766083473927,4.1291259,123.03,123.01,0.1]
[1766083474242,21.15615215,123.05,123.01,0.82]
[1766083474844,13.0291259,123.05,123.01,0.82]
[1766083475340,4.1291259,123.04,123.01,0.82]
[1766083475530,2.64384423,123.04,123.01,0.1]
[1766083476122,11.54384423,123.04,123.01,0.82]
[1766083479726,2.64384423,123.03,123.01,0.1]
[1766083481339,17.02752639,123.04,123.01,0.1]
[1766083481553,2.64384423,123.03,123.01,0.1]
[1766083482057,2.64384423,123.02,123.0,0.1]
[1766083482628,37.34610989,123.04,123.0,0.1]
[1766083482956,2.64384423,123.02,123.0,0.1]
[1766083483466,11.54384423,123.01,122.97,0.2]
[1766083483623,2.64384423,123.0,122.97,0.88]
[1766083484045,11.54384423,123.01,122.97,0.88]
[1766083484243,29.12976349,123.04,122.97,0.88]
[1766083484244,10.43767296,123.03,122.98,0.68]
[1766083484440,8.9,123.02,122.98,0.68]
[1766083485344,8.9,123.02,122.99,0.68]
[1766083487443,11.54384423,123.02,122.99,0.68]
[1766083487847,8.9,123.02,122.99,0.68]
[1766083488262,11.54384423,123.02,122.99,0.68]
[1766083488963,2.64384423,123.01,122.98,0.68]
[1766083489255,2.64384423,123.0,122.97,0.2]
[1766083489646,2.64384423,122.98,122.93,0.68]
[1766083490357,2.64384423,122.97,122.94,0.68]
[1766083490837,11.54384423,122.96,122.92,0.68]
[1766083492465,2.64384423,122.95,122.92,0.68]
[1766083492644,2.64384423,122.94,122.91,0.1]
[1766083492839,2.64384423,122.94,122.91,0.78]
[1766083493044,17.03273985,122.96,122.91,0.78]
[1766083493045,11.54384423,122.95,122.91,0.78]
[1766083493252,8.9,122.95,122.91,0.78]
[1766083493643,11.54384423,122.95,122.91,0.78]
[1766083494061,11.54384423,122.95,122.91,8.91601732]
[1766083494270,11.54384423,122.95,122.92,0.68]
[1766083495761,2.64384423,122.95,122.92,0.68]
[1766083496091,11.54384423,122.95,122.92,0.68]
[1766083496394,2.64384423,122.93,122.91,0.1]
[1766083496585,2.64384423,122.92,122.89,11.21767296]
[1766083496760,8.9,122.92,122.89,0.78]
[1766083496961,11.54384423,122.92,122.89,0.78]
[1766083497160,8.9,122.92,122.89,0.78]
[1766083497476,11.54384423,122.92,122.89,0.78]
[1766083497864,2.64384423,122.91,122.89,0.1]
[1766083498266,2.64384423,122.9,122.88,0.1]
[1766083498760,2.64384423,122.91,122.88,0.78]
[1766083499263,2.64384423,122.9,122.88,0.1]
[1766083499979,2.64384423,122.9,122.87,0.68]
[1766083500286,11.54384423,122.89,122.85,0.78]
[1766083500793,11.54384423,122.89,122.85,8.91995445]
[1766083501097,8.9,122.89,122.85,0.75]
[1766083501261,8.9,122.89,122.85,0.1]
[1766083501262,2.64384423,122.87,122.85,0.1]
[1766083501666,17.03742969,122.89,122.85,0.1]
[1766083501871,2.64384423,122.88,122.85,0.1]
[1766083502079,2.64384423,122.88,122.85,0.75]
[1766083502981,2.64384423,122.88,122.83,0.65]
[1766083502982,2.64384423,122.86,122.83,0.65]
[1766083503183,2.64384423,122.84,122.81,0.65]
[1766083503695,2.64384423,122.83,122.81,0.65]
[1766083504096,8.9,122.86,122.81,0.65]
[1766083504394,11.45378915,122.88,122.81,0.65]
[1766083504395,2.64384423,122.84,122.81,0.65]
[1766083504578,2.64384423,122.83,122.81,0.65]
[1766083504974,2.64384423,122.83,122.79,0.65]
[1766083505190,2.64384423,122.83,122.8,0.65]
[1766083505571,8.9,122.85,122.81,0.65]
[1766083505786,2.64384423,122.84,122.81,0.65]
[1766083505996,8.9,122.85,122.82,0.65]
[1766083506176,2.64384423,122.84,122.82,0.65]
[1766083507088,2.64384423,122.84,122.8,0.65]
[1766083507995,2.64384423,122.84,122.81,0.65]
[1766083508385,17.04023403,122.85,122.81,0.65]
[1766083508700,2.64384423,122.84,122.81,0.65]
[1766083509074,11.54384423,122.85,122.81,0.65]
[1766083509390,2.64384423,122.83,122.79,0.65]
[1766083509597,2.64384423,122.83,122.79,8.14392934]
[1766083509786,2.64384423,122.83,122.8,0.65]
[1766083510180,17.04015499,122.85,122.8,8.14313867]
[1766083510181,8.9,122.85,122.8,8.14313867]
[1766083510388,2.64384423,122.84,122.81,0.65]
[1766083510895,8.9,122.85,122.82,0.65]
[1766083510896,2.64384423,122.85,122.82,0.65]
[1766083511200,8.13873099,122.87,122.83,0.65]
[1766083511201,11.56384423,122.87,122.83,0.65]
[1766083511579,2.64384423,122.86,122.83,0.65]
[1766083511780,2.64384423,122.86,122.81,0.65]
[1766083511990,2.64384423,122.83,122.79,0.65]
[1766083512199,11.56384423,122.84,122.8,0.65]
[1766083512627,2.64384423,122.83,122.8,0.65]
[1766083513399,17.06090999,122.84,122.8,0.65]
[1766083513600,2.64384423,122.83,122.8,0.65]
[1766083513796,11.56384423,122.84,122.8,0.65]
[1766083513980,8.92,122.84,122.8,0.65]
[1766083514179,8.92,122.84,122.8,8.14310487]
[1766083514392,11.56384423,122.84,122.8,0.72]
[1766083516379,2.64384423,122.83,122.78,10.53767296]
[1766083516712,2.64384423,122.83,122.79,0.72]
[1766083518584,2.64384423,122.82,122.78,0.82]
[1766083519609,2.64384423,122.83,122.79,0.72]
[1766083520288,11.56384423,122.83,122.79,0.72]
[1766083520488,8.92,122.83,122.79,0.72]
[1766083520788,11.56384423,122.83,122.79,0.72]
[1766083521196,11.56384423,122.83,122.8,0.72]
[1766083521393,19.70519303,122.83,122.8,0.72]
[1766083522714,11.56384423,122.83,122.8,0.72]
[1766083523805,2.64384423,122.81,122.78,0.1]
[1766083524015,2.64384423,122.82,122.79,0.72]
[1766083525027,11.56384423,122.83,122.79,0.72]
[1766083525207,8.92,122.83,122.79,0.72]
[1766083525406,11.56384423,122.83,122.79,0.72]
[1766083526027,8.92,122.83,122.8,0.72]
[1766083526523,11.56384423,122.83,122.79,8.86376888]
[1766083527020,2.64384423,122.82,122.79,0.72]
[1766083527194,17.06135349,122.83,122.79,0.72]
[1766083527396,11.56384423,122.83,122.79,0.72]
[1766083528439,2.64384423,122.82,122.79,0.72]
[1766083529127,11.56384423,122.83,122.79,0.72]
[1766083529720,2.64384423,122.83,122.79,0.72]
[1766083529922,11.56384423,122.83,122.79,0.72]
[1766083530224,30.78731745,122.86,122.81,0.72]
[1766083530225,18.57737627,122.86,122.81,0.72]
[1766083530414,2.64384423,122.83,122.79,0.72]
[1766083531127,11.56384423,122.83,122.79,0.72]
[1766083532050,11.56384423,122.83,122.78,0.1]
[1766083532051,2.64384423,122.82,122.78,0.1]
[1766083532327,2.64384423,122.82,122.78,0.82]
[1766083533024,8.92,122.83,122.78,0.82]
[1766083533025,2.64384423,122.81,122.78,0.82]
[1766083533244,2.64384423,122.8,122.78,0.1]
[1766083534228,2.64384423,122.82,122.78,0.82]
[1766083535622,4.14635715,122.82,122.78,0.82]
[1766083535828,4.14635715,122.81,122.78,0.82]
[1766083536014,4.14635715,122.82,122.78,0.82]
[1766083537017,4.14635715,122.79,122.76,0.72]
[1766083537225,8.92,122.8,122.76,0.72]
[1766083537523,4.14635715,122.79,122.76,0.72]
[1766083540618,21.20969375,122.8,122.76,0.72]
[1766083540834,13.06635715,122.8,122.76,0.72]
[1766083541011,13.06635715,122.8,122.77,0.72]
[1766083541435,10.43767296,122.83,122.77,0.72]
[1766083541608,8.92,122.82,122.77,0.72]
[1766083541938,8.92,122.82,122.78,0.72]
[1766083542109,8.92,122.82,122.79,8.14398566]
[1766083542423,8.92,122.82,122.8,0.72]
[1766083543935,13.06635715,122.82,122.78,0.67]
[1766083544235,12.28921231,122.81,122.77,0.67]
[1766083544922,4.14635715,122.81,122.77,0.67]
[1766083545119,4.14635715,122.8,122.77,0.67]
[1766083545722,8.14308284,122.81,122.77,0.67]
[1766083546027,12.28943999,122.81,122.77,0.67]
[1766083546749,13.06635715,122.82,122.77,0.67]
[1766083547237,13.06635715,122.82,122.78,0.67]
[1766083549742,8.92,122.82,122.79,0.67]
[1766083549921,4.14635715,122.83,122.79,0.67]
[1766083550745,13.06635715,122.84,122.79,0.67]
[1766083550930,13.06635715,122.84,122.8,0.67]
[1766083551830,21.20706829,122.84,122.8,0.67]
[1766083555145,13.06635715,122.84,122.8,0.67]
[1766083556252,8.92,122.84,122.8,8.14331404]
[1766083556548,8.92,122.84,122.81,0.67]
[1766083557251,8.2,122.84,122.81,0.67]
[1766083557423,10.31443055,122.88,122.81,0.67]
[1766083557618,12.9737807,122.89,122.84,0.67]
[1766083557848,21.8937807,122.89,122.84,0.67]
[1766083558948,4.83635715,122.87,122.84,0.67]
[1766083559163,4.83635715,122.86,122.82,0.67]
[1766083559453,13.75635715,122.86,122.82,0.67]
[1766083559653,13.75635715,122.86,122.8,0.67]
[1766083559654,4.14635715,122.84,122.8,0.67]
[1766083559838,4.83635715,122.84,122.8,0.67]
[1766083560323,4.14635715,122.84,122.8,0.67]
[1766083560526,4.83635715,122.84,122.8,0.67]
[1766083561133,4.14635715,122.83,122.8,0.67]
[1766083561332,4.85635715,122.83,122.79,0.66]
[1766083561825,12.28783476,122.83,122.77,8.14494415]
[1766083562126,12.28783476,122.83,122.76,20.36368635]
[1766083562127,4.14635715,122.79,122.76,0.66]
[1766083562547,4.14635715,122.79,122.73,17.06770746]
[1766083562755,4.85635715,122.78,122.74,0.66]
[1766083563051,0.71,122.78,122.74,0.66]
[1766083563257,4.85635715,122.78,122.74,0.66]
[1766083563546,12.26781168,122.78,122.74,0.66]
[1766083563973,20.4125045,122.78,122.74,0.66]
[1766083564976,19.7025045,122.78,122.74,0.66]
[1766083565205,11.55781168,122.76,122.72,0.66]
[1766083565369,11.55781168,122.77,122.72,0.66]
[1766083565666,11.55781168,122.76,122.72,0.66]
[1766083566041,11.55781168,122.77,122.72,0.66]
[1766083566256,0.71,122.78,122.73,8.14760522]
[1766083566462,12.26781168,122.79,122.74,0.66]
[1766083566843,11.55781168,122.79,122.75,0.66]
[1766083567045,12.26781168,122.79,122.75,0.66]
[1766083567461,8.85416564,122.79,122.75,0.66]
[1766083567673,20.41197732,122.79,122.75,0.66]
[1766083568475,12.26781168,122.79,122.75,0.66]
[1766083568640,20.41186539,122.79,122.75,0.66]
[1766083569796,11.55781168,122.78,122.73,0.66]
[1766083570001,17.77363065,122.8,122.74,0.66]
[1766083570205,29.33144233,122.8,122.74,0.66]
[1766083570595,29.33144233,122.8,122.73,21.99548464]
[1766083570596,0.71,122.77,122.71,0.66]
[1766083570785,21.0777566,122.79,122.73,0.66]
[1766083571115,0.71,122.79,122.75,0.66]
[1766083572011,12.26781168,122.79,122.75,0.66]
[1766083572520,20.41191351,122.79,122.75,0.66]
[1766083573901,12.26781168,122.76,122.72,0.7]
[1766083574611,20.4140703,122.76,122.72,0.7]
[1766083574919,11.55781168,122.75,122.72,0.7]
[1766083575089,20.41386126,122.76,122.72,0.7]
[1766083575284,11.55781168,122.76,122.72,0.7]
[1766083577492,19.70386195,122.76,122.72,0.7]
[1766083577695,20.41386195,122.76,122.72,0.7]
[1766083577915,11.55781168,122.75,122.72,0.7]
[1766083578118,8.92,122.77,122.73,0.7]
[1766083578315,21.18781168,122.77,122.73,0.7]
[1766083579124,9.63,122.77,122.73,0.7]
[1766083579332,21.18781168,122.77,122.73,0.7]
[1766083580004,29.33317758,122.77,122.73,0.7]
[1766083580913,11.55781168,122.76,122.73,0.7]
[1766083581107,20.41379271,122.76,122.73,0.7]
[1766083581421,12.26781168,122.76,122.73,0.7]
[1766083582120,11.55781168,122.76,122.73,0.7]
[1766083582521,0.71,122.75,122.71,11.13767296]
[1766083582701,12.26781168,122.75,122.71,0.7]
[1766083583821,12.26781168,122.72,122.7,0.1]
[1766083584120,12.26781168,122.73,122.7,0.1]
[1766083585420,4.86236245,122.73,122.7,0.1]
[1766083585624,4.86236245,122.72,122.7,0.1]
[1766083585820,0.71,122.72,122.7,0.1]
[1766083586018,4.86236245,122.72,122.7,0.1]
[1766083586722,8.14807407,122.73,122.66,0.8]
[1766083586723,0.62,122.7,122.66,0.8]
[1766083587021,4.77236245,122.7,122.66,0.8]
[1766083587427,12.92243815,122.7,122.66,0.8]
[1766083587757,4.77236245,122.69,122.66,0.1]
[1766083588416,4.77236245,122.68,122.66,0.1]
[1766083589623,4.77236245,122.67,122.65,0.1]
[1766083590322,4.15236245,122.66,122.65,0.1]
[1766083590705,0.62,122.65,122.61,0.7]
[1766083590899,4.15236245,122.64,122.61,0.7]
[1766083591106,4.77236245,122.62,122.59,0.1]
[1766083591330,4.15236245,122.61,122.59,0.1]
[1766083591507,4.15236245,122.61,122.58,3.18853948]
[1766083591508,4.15236245,122.59,122.54,0.7]
[1766083591926,4.15236245,122.59,122.54,8.16045163]
[1766083592227,19.09324144,122.62,122.53,30.8402073]
[1766083592428,23.51003541,122.62,122.56,4.15236245]
[1766083592634,8.92,122.62,122.57,4.15236245]
[1766083592811,20.37916413,122.68,122.59,4.15236245]
[1766083593013,13.57236245,122.67,122.6,4.15236245]
[1766083593230,32.16226905,122.67,122.6,12.30832125]
[1766083593412,39.5889161,122.67,122.6,19.7349683]
[1766083593613,11.5790095,122.66,122.6,19.7349683]
[1766083594040,11.5790095,122.68,122.62,11.5790095]
[1766083594242,20.38895442,122.69,122.63,0.7]
[1766083594446,20.9990095,122.7,122.65,0.7]
[1766083595258,11.5790095,122.69,122.65,0.7]
[1766083596219,20.9990095,122.7,122.65,8.15308557]
[1766083596420,9.42,122.7,122.66,0.7]
[1766083596741,20.9990095,122.7,122.66,0.7]
[1766083597154,8.92,122.7,122.66,0.7]
[1766083598418,8.64816686,122.73,122.67,0.7]
[1766083598618,24.6890236,122.73,122.68,0.7]
[1766083600547,17.56816686,122.73,122.68,0.7]
[1766083600733,7.12085674,122.72,122.68,0.7]
[1766083601148,17.56816686,122.73,122.68,0.7]
[1766083601349,16.04085674,122.73,122.68,0.7]
[1766083601523,24.1889623,122.73,122.68,0.7]
[1766083601847,24.6889623,122.73,122.68,0.7]
[1766083602048,7.12085674,122.72,122.68,0.7]
[1766083602629,7.12085674,122.71,122.67,0.66]
[1766083603033,7.12085674,122.7,122.67,0.66]
[1766083604033,7.62085674,122.71,122.67,0.66]
[1766083604239,7.12085674,122.71,122.67,0.66]
[1766083605549,15.77020547,122.71,122.67,0.66]
[1766083605751,7.62085674,122.7,122.65,0.66]
[1766083606048,7.62085674,122.69,122.65,0.66]
[1766083606231,7.12085674,122.68,122.65,0.66]
[1766083606736,7.12085674,122.68,122.59,61.1]
[1766083606737,0.5,122.65,122.54,0.66]
[1766083606934,0.5,122.65,122.57,0.66]
[1766083606935,8.92,122.64,122.57,0.66]
[1766083607248,16.04085674,122.64,122.58,8.15751218]
[1766083607449,16.04085674,122.64,122.59,0.66]
[1766083607932,17.57242611,122.67,122.61,0.66]
[1766083608134,7.12085674,122.66,122.61,0.66]
[1766083609040,7.12085674,122.65,122.61,0.66]
[1766083610555,8.80994492,122.66,122.61,0.66]
[1766083610744,16.04085674,122.67,122.62,0.66]
[1766083611056,7.12085674,122.66,122.62,0.66]
[1766083611238,8.92,122.67,122.62,0.66]
[1766083611443,7.12085674,122.66,122.62,0.66]
[1766083611938,7.12085674,122.65,122.62,0.66]
[1766083612255,7.12085674,122.66,122.62,0.66]
[1766083613349,7.12085674,122.65,122.62,0.66]
[1766083613749,7.12085674,122.66,122.62,0.66]
[1766083614437,7.12085674,122.65,122.62,0.66]
[1766083614631,7.12085674,122.66,122.62,0.66]
[1766083615032,15.27433696,122.65,122.62,0.66]
[1766083615333,15.27433696,122.65,122.6,0.66]
[1766083615334,2.66115486,122.64,122.6,0.66]
[1766083615556,10.81463508,122.65,122.6,0.66]
[1766083616255,2.66115486,122.64,122.6,0.66]
[1766083616643,8.65348022,122.65,122.6,0.66]
[1766083616960,2.66115486,122.64,122.6,0.66]
[1766083617152,2.66115486,122.65,122.61,0.66]
[1766083618159,120.87228941,122.67,122.62,0.66]
[1766083618457,2.66115486,122.66,122.62,0.66]
[1766083619959,124.03344427,122.67,122.62,0.66]
[1766083620142,2.66115486,122.66,122.62,0.66]
[1766083620343,121.37228941,122.67,122.62,0.66]
[1766083620550,121.37228941,122.67,122.63,0.66]
[1766083620551,113.22,122.67,122.63,0.66]
[1766083620753,8.94,122.69,122.63,0.66]
[1766083621066,2.66115486,122.68,122.63,0.66]
[1766083621559,10.8125004,122.68,122.63,0.66]
[1766083622270,2.66115486,122.67,122.63,0.66]
[1766083622772,8.15134554,122.68,122.63,0.66]
[1766083622773,2.66115486,122.68,122.64,0.71]
[1766083623471,20.2519776,122.69,122.64,0.71]
[1766083624143,20.2519776,122.69,122.63,0.71]
[1766083624144,0.5,122.68,122.63,0.71]
[1766083624340,0.5,122.66,122.6,0.71]
[1766083624539,8.94,122.66,122.62,8.1549539]
[1766083624770,8.94,122.66,122.63,0.71]
[1766083625264,3.16115486,122.68,122.64,0.71]